bitfinex/quotes_BTCUSD_20241117
["timestamp","ask_amount","ask_price","bid_price","bid_amount"]
[1731815121169,0.110949,90132.0,90127.0,0.22372655]
[1731815121839,0.54333517,90138.0,90129.0,0.110952]
[1731815121840,0.32144595,90138.0,90129.0,0.110952]
[1731815122052,0.110946,90134.0,90129.0,0.110952]
[1731815123108,0.09956395,90138.0,90133.0,0.110946]
[1731815123318,0.0008552,90140.0,90136.0,0.002]
[1731815123591,0.0008552,90140.0,90137.0,0.002]
[1731815123822,0.0008552,90140.0,90136.0,0.0798]
[1731815124030,0.1117932,90140.0,90136.0,0.0798]
[1731815124238,0.0008552,90140.0,90136.0,0.190743]
[1731815124663,0.1117932,90140.0,90136.0,0.0798]
[1731815125308,0.1117932,90140.0,90138.0,0.002]
[1731815125734,0.0008552,90140.0,90139.0,0.110939]
[1731815125963,0.0008552,90140.0,90139.0,0.22000155]
[1731815126184,0.0008552,90140.0,90139.0,0.22200155]
[1731815126906,0.0008552,90140.0,90139.0,0.22222018]
[1731815127143,0.0008552,90140.0,90139.0,0.22422018]
[1731815127373,0.0008552,90140.0,90139.0,0.27022018]
[1731815127820,0.0008552,90140.0,90139.0,0.34522018]
[1731815128050,0.0008552,90140.0,90139.0,0.34300155]
[1731815128291,0.0008552,90140.0,90139.0,0.34500155]
[1731815130607,0.0008552,90140.0,90139.0,0.34300155]
[1731815130835,0.0008552,90140.0,90139.0,0.34500155]
[1731815132023,0.0008552,90140.0,90139.0,0.35500155]
[1731815132243,0.0008552,90140.0,90139.0,0.45500155]
[1731815133844,0.0008552,90140.0,90139.0,0.45000155]
[1731815134913,0.0008552,90140.0,90139.0,0.29700155]
[1731815135142,0.0008552,90140.0,90139.0,0.10906255]
[1731815135826,0.1037922,90141.0,90139.0,0.10906255]
[1731815136037,0.0008552,90142.0,90139.0,0.10906255]
[1731815136246,0.00506992,90140.0,90139.0,0.10906255]
[1731815136685,0.00517901,90140.0,90139.0,0.10906255]
[1731815137316,0.00517901,90140.0,90130.0,0.221899]
[1731815137317,0.00517901,90140.0,90134.0,0.002]
[1731815137533,0.00517901,90140.0,90135.0,0.10906255]
[1731815137739,0.110942,90137.0,90135.0,0.10906255]
[1731815137959,0.221879,90139.0,90135.0,0.10906255]
[1731815138190,0.11612194,90136.0,90135.0,0.10906255]
[1731815138402,0.110943,90136.0,90134.0,0.002]
[1731815138613,0.00517894,90136.0,90128.0,0.110952]
[1731815138844,0.110945,90134.0,90129.0,0.10906255]
[1731815139082,0.11095,90130.0,90129.0,0.002]
[1731815139315,0.00517894,90136.0,90127.0,0.00171]
[1731815139316,0.110953,90128.0,90127.0,0.00171]
[1731815139766,0.16458086,90128.0,90127.0,0.00171]
[1731815140859,0.24248086,90128.0,90127.0,0.00171]
[1731815141123,0.27822346,90128.0,90127.0,0.00171]
[1731815142929,0.27962073,90128.0,90127.0,0.00171]
[1731815143569,0.37900452,90128.0,90127.0,0.00171]
[1731815143774,0.37900414,90128.0,90127.0,0.00171]
[1731815144650,0.27962073,90128.0,90127.0,0.00171]
[1731815146398,0.37898397,90128.0,90127.0,0.00171]
[1731815146872,0.27962073,90128.0,90127.0,0.00171]
[1731815147515,0.37897611,90128.0,90127.0,0.00171]
[1731815147744,0.27962073,90128.0,90127.0,0.00171]
[1731815147947,0.42868366,90128.0,90127.0,0.00171]
[1731815148173,0.27962073,90128.0,90127.0,0.00171]
[1731815148640,0.3789631,90128.0,90127.0,0.00171]
[1731815148846,0.3010631,90128.0,90127.0,0.00171]
[1731815149056,0.20172073,90128.0,90127.0,0.00171]
[1731815150751,0.19372073,90128.0,90127.0,0.00171]
[1731815158410,0.21672073,90128.0,90127.0,0.00171]
[1731815159612,0.29242073,90128.0,90127.0,0.00171]
[1731815160089,0.39173731,90128.0,90127.0,0.00171]
[1731815160323,0.39173723,90128.0,90127.0,0.00171]
[1731815160557,0.40648328,90128.0,90127.0,0.00171]
[1731815160792,0.40648328,90128.0,90120.0,0.0017102]
[1731815160793,0.110961,90121.0,90120.0,0.0017102]
[1731815161023,0.25278853,90121.0,90120.0,0.0017102]
[1731815161263,0.30570754,90121.0,90120.0,0.0017102]
[1731815161496,0.51847009,90121.0,90120.0,0.0017102]
[1731815161748,0.40440754,90121.0,90120.0,0.0017102]
[1731815163185,0.40940754,90121.0,90120.0,0.0017102]
[1731815164360,0.30570754,90121.0,90120.0,0.0017102]
[1731815164648,0.25770754,90121.0,90120.0,0.0017102]
[1731815165770,0.24970754,90121.0,90120.0,0.0017102]
[1731815167542,0.40410754,90121.0,90120.0,0.0017102]
[1731815168673,0.61317009,90121.0,90120.0,0.0017102]
[1731815169119,0.71242618,90121.0,90120.0,0.0017102]
[1731815169355,0.61317009,90121.0,90120.0,0.0017102]
[1731815172703,0.90388176,90121.0,90120.0,0.0017102]
[1731815172913,1.12632476,90121.0,90120.0,0.0017102]
[1731815173360,0.133,90120.0,90119.0,0.00058144]
[1731815173617,0.84555269,90120.0,90119.0,0.00058144]
[1731815173845,0.85043475,90120.0,90119.0,0.00058144]
[1731815174545,0.85143475,90120.0,90119.0,0.00058144]
[1731815175675,0.005,90111.0,90104.0,0.16743407]
[1731815175908,0.110981,90105.0,90104.0,0.16743407]
[1731815176376,0.110981,90105.0,90088.0,0.0831108]
[1731815176377,0.24107405,90108.0,90088.0,0.0831108]
[1731815176595,0.110989,90099.0,90098.0,0.16743407]
[1731815176822,0.110989,90099.0,90098.0,0.0589]
[1731815177038,0.023,90110.0,90086.0,0.44402]
[1731815177245,0.221978,90100.0,90083.0,0.0017094]
[1731815177487,0.023,90110.0,90086.0,0.22201]
[1731815177488,0.221978,90099.0,90086.0,0.22201]
[1731815177696,0.110994,90095.0,90088.0,0.111001]
[1731815177917,0.00365397,90098.0,90088.0,0.111002]
[1731815178143,0.221978,90099.0,90086.0,0.22201]
[1731815178144,0.00364412,90094.0,90086.0,0.22201]
[1731815178401,0.110994,90095.0,90085.0,0.27649662]
[1731815178605,0.00364165,90093.0,90085.0,0.27649662]
[1731815178810,0.11463912,90094.0,90089.0,0.111001]
[1731815179024,0.00363919,90092.0,90090.0,0.110999]
[1731815179235,0.00364165,90093.0,90090.0,0.110999]
[1731815179447,0.110994,90095.0,90090.0,0.110999]
[1731815179666,0.00121562,90092.0,90090.0,0.110999]
[1731815179870,0.110994,90095.0,90090.0,0.110999]
[1731815179871,0.00121073,90094.0,90090.0,0.110999]
[1731815180135,0.110994,90095.0,90091.0,0.0776]
[1731815180364,0.00121317,90093.0,90092.0,0.110997]
[1731815180591,0.0008558,90099.0,90091.0,0.0776]
[1731815180592,0.110994,90095.0,90091.0,0.0776]
[1731815180819,0.00121317,90093.0,90091.0,0.0776]
[1731815181023,0.00364412,90094.0,90091.0,0.0776]
[1731815181247,0.00364412,90094.0,90093.0,0.110996]
[1731815181955,0.1118448,90099.0,90093.0,0.110996]
[1731815182210,0.1118448,90099.0,90098.0,0.11099]
[1731815182211,0.0008558,90099.0,90098.0,0.11099]
[1731815182468,0.0008558,90099.0,90098.0,0.3472721]
[1731815182701,0.0008558,90099.0,90098.0,0.35005255]
[1731815182923,0.0008558,90099.0,90098.0,0.34505255]
[1731815184186,0.0008558,90099.0,90092.0,0.221995]
[1731815184397,0.0008558,90099.0,90093.0,0.10906255]
[1731815184620,0.0008558,90099.0,90094.0,0.22199]
[1731815184863,0.11099,90098.0,90095.0,0.10906255]
[1731815185115,0.1118448,90099.0,90095.0,0.10906255]
[1731815185343,0.0008558,90099.0,90097.0,0.110991]
[1731815187140,0.0008558,90099.0,90095.0,0.10906255]
[1731815187141,0.0008558,90099.0,90095.0,0.22005555]
[1731815187360,0.0008558,90099.0,90092.0,0.0776]
[1731815187581,0.0008558,90099.0,90095.0,0.110992]
[1731815188706,0.0008558,90099.0,90096.0,0.110992]
[1731815189650,0.0008558,90099.0,90093.0,0.33105455]
[1731815189861,0.0008558,90099.0,90098.0,0.11099]
[1731815194054,0.0008558,90099.0,90098.0,0.22005255]
[1731815194267,0.0008558,90099.0,90098.0,0.34895255]
[1731815195575,0.0008558,90099.0,90098.0,0.35395255]
[1731815195783,0.0026669,90117.0,90116.0,0.110968]
[1731815196206,0.110961,90122.0,90117.0,0.110966]
[1731815197380,0.03646511,90123.0,90114.0,0.30204]
[1731815197597,0.110962,90121.0,90116.0,0.110968]
[1731815199080,0.110962,90121.0,90112.0,0.10906255]
[1731815199081,0.110963,90120.0,90115.0,0.110968]
[1731815199295,0.11096,90122.0,90116.0,0.110967]
[1731815199501,0.11096,90122.0,90114.0,0.221941]
[1731815199736,0.11096,90122.0,90117.0,0.110966]
[1731815200170,0.03547986,90124.0,90114.0,0.221941]
[1731815200394,0.11096,90122.0,90115.0,0.110969]
[1731815200615,0.11096,90122.0,90116.0,0.110967]
[1731815200830,0.110962,90121.0,90116.0,0.110967]
[1731815202095,0.023,90124.0,90112.0,0.10906255]
[1731815202344,0.110959,90123.0,90117.0,0.110966]
[1731815202793,0.09956585,90125.0,90114.0,0.16743407]
[1731815203064,0.0008554,90127.0,90123.0,0.110958]
[1731815203283,0.0008554,90127.0,90122.0,0.110959]
[1731815203514,0.0008554,90127.0,90122.0,0.11096]
[1731815203722,0.0008554,90127.0,90120.0,0.221924]
[1731815203723,0.110955,90126.0,90121.0,0.110961]
[1731815203929,0.0008554,90127.0,90115.0,0.10906255]
[1731815204151,0.0008554,90127.0,90117.0,0.221933]
[1731815204152,0.1118104,90127.0,90117.0,0.221933]
[1731815204385,0.110957,90125.0,90120.0,0.110961]
[1731815204599,0.0008558,90122.0,90120.0,0.110961]
[1731815204808,0.0008558,90122.0,90118.0,0.221931]
[1731815204809,0.0008558,90122.0,90119.0,0.221928]
[1731815205017,0.0008558,90122.0,90120.0,0.110962]
[1731815205229,0.0008558,90122.0,90117.0,0.10906255]
[1731815205435,0.0008558,90122.0,90118.0,0.221931]
[1731815205672,0.0008558,90122.0,90120.0,0.110961]
[1731815206113,0.0008558,90122.0,90121.0,0.110961]
[1731815207231,0.00574383,90122.0,90121.0,0.110961]
[1731815207458,0.0008558,90122.0,90121.0,0.110961]
[1731815208969,0.0008558,90122.0,90120.0,0.110962]
[1731815209181,0.00574383,90122.0,90121.0,0.110961]
[1731815209391,0.0008558,90122.0,90121.0,0.110961]
[1731815209636,0.0008558,90122.0,90119.0,0.110963]
[1731815209637,0.00574383,90122.0,90119.0,0.110963]
[1731815209873,0.0008558,90122.0,90119.0,0.110963]
[1731815210091,0.0008558,90122.0,90117.0,0.10906255]
[1731815210092,0.004888,90121.0,90117.0,0.10906255]
[1731815210302,0.00371062,90121.0,90117.0,0.10906255]
[1731815210522,0.00497288,90121.0,90117.0,0.22002855]
[1731815210734,0.11096,90123.0,90117.0,0.22002855]
[1731815210735,0.10878868,90123.0,90117.0,0.22002855]
[1731815210959,0.221914,90125.0,90117.0,0.22002855]
[1731815211178,0.11096,90123.0,90117.0,0.22002855]
[1731815212327,0.11096,90122.0,90117.0,0.22002855]
[1731815214499,0.221914,90125.0,90117.0,0.10906255]
[1731815214708,0.110961,90122.0,90117.0,0.10906255]
[1731815214919,0.110961,90122.0,90117.0,0.22002855]
[1731815216247,0.221914,90125.0,90117.0,0.22173955]
[1731815216248,0.110962,90121.0,90117.0,0.22173955]
[1731815216713,0.221916,90124.0,90117.0,0.11077355]
[1731815217384,0.110961,90122.0,90117.0,0.22173955]
[1731815219113,0.221923,90122.0,90117.0,0.11077355]
[1731815219324,0.221918,90123.0,90117.0,0.11077355]
[1731815220400,0.110962,90121.0,90117.0,0.11077355]
[1731815220847,0.221918,90123.0,90117.0,0.11077355]
[1731815220848,0.110963,90120.0,90117.0,0.11077355]
[1731815221079,0.110965,90118.0,90117.0,0.001711]
[1731815221291,0.133965,90118.0,90117.0,0.001711]
[1731815221506,0.1317193,90118.0,90117.0,0.001711]
[1731815221720,0.16493052,90118.0,90117.0,0.001711]
[1731815221954,0.21453052,90118.0,90117.0,0.001711]
[1731815222165,0.1813193,90118.0,90117.0,0.001711]
[1731815222396,0.2043193,90118.0,90117.0,0.001711]
[1731815222605,0.35350987,90118.0,90117.0,0.001711]
[1731815222833,0.2043193,90118.0,90117.0,0.001711]
[1731815223570,0.68889696,90118.0,90117.0,0.001711]
[1731815223794,0.68890052,90118.0,90117.0,0.001711]
[1731815224704,0.93771812,90118.0,90117.0,0.001711]
[1731815225606,0.69091263,90118.0,90117.0,0.001711]
[1731815225828,0.93175368,90118.0,90117.0,0.001711]
[1731815226299,0.79697518,90118.0,90117.0,0.001711]
[1731815227137,0.79497518,90118.0,90117.0,0.001711]
[1731815227359,0.68091263,90118.0,90117.0,0.001711]
[1731815227618,0.20953577,90118.0,90117.0,0.001711]
[1731815227834,0.15993577,90118.0,90117.0,0.001711]
[1731815228568,0.23870851,90118.0,90117.0,0.001711]
[1731815228779,0.30752379,90118.0,90117.0,0.001711]
[1731815228985,0.81680897,90118.0,90117.0,0.001711]
[1731815229829,1.06563782,90118.0,90117.0,0.001711]
[1731815230046,1.01586673,90118.0,90117.0,0.001711]
[1731815230253,0.81680897,90118.0,90117.0,0.001711]
[1731815230679,1.01586145,90118.0,90117.0,0.001711]
[1731815230895,0.81680897,90118.0,90117.0,0.001711]
[1731815231103,1.06563782,90118.0,90117.0,0.001711]
[1731815231557,1.17970037,90118.0,90117.0,0.001711]
[1731815231765,0.9101292,90118.0,90117.0,0.001711]
[1731815231981,0.93086543,90118.0,90117.0,0.001711]
[1731815232760,0.93084706,90118.0,90117.0,0.001711]
[1731815233193,1.17966521,90118.0,90117.0,0.001711]
[1731815233407,1.17965794,90118.0,90117.0,0.001711]
[1731815233615,0.93084706,90118.0,90117.0,0.001711]
[1731815234229,1.17964979,90118.0,90117.0,0.001711]
[1731815234666,0.93083629,90118.0,90117.0,0.001711]
[1731815234877,1.17964801,90118.0,90117.0,0.001711]
[1731815235125,1.15891178,90118.0,90117.0,0.001711]
[1731815235333,0.9308302,90118.0,90117.0,0.001711]
[1731815235952,0.9308302,90118.0,90100.0,0.16743407]
[1731815235953,0.110986,90101.0,90100.0,0.16743407]
[1731815236555,0.110986,90101.0,90093.0,0.0017116]
[1731815236556,0.221976,90100.0,90093.0,0.0017116]
[1731815236761,0.110991,90098.0,90090.0,0.16743407]
[1731815236959,0.110991,90098.0,90092.0,0.110997]
[1731815237318,0.110991,90098.0,90091.0,0.22006055]
[1731815237461,0.110991,90097.0,90091.0,0.22006055]
[1731815237686,0.221963,90105.0,90094.0,0.221988]
[1731815237882,0.221939,90115.0,90094.0,0.221988]
[1731815237883,0.06582901,90112.0,90094.0,0.221988]
[1731815238104,0.221955,90108.0,90097.0,0.11099]
[1731815238375,0.110986,90102.0,90097.0,0.11099]
[1731815238552,0.110987,90101.0,90095.0,0.110993]
[1731815238760,0.221955,90108.0,90091.0,0.10906255]
[1731815238999,0.110985,90102.0,90096.0,0.110992]
[1731815239610,0.110979,90107.0,90097.0,0.110991]
[1731815239774,0.221955,90108.0,90097.0,0.110991]
[1731815239975,0.110985,90102.0,90097.0,0.110991]
[1731815240199,0.221955,90108.0,90092.0,0.221995]
[1731815240407,0.110984,90103.0,90097.0,0.110991]
[1731815240607,0.102984,90103.0,90097.0,0.110991]
[1731815240808,0.110986,90102.0,90097.0,0.110991]
[1731815241258,0.110986,90102.0,90094.0,0.22199]
[1731815241481,0.110986,90102.0,90096.0,0.110991]
[1731815241681,0.110987,90101.0,90096.0,0.110991]
[1731815242300,0.22196,90106.0,90092.0,0.10906255]
[1731815242462,0.023,90110.0,90092.0,0.10906255]
[1731815242664,0.221969,90103.0,90091.0,0.0017116]
[1731815242866,0.110997,90092.0,90091.0,0.0017116]
[1731815244269,0.190697,90092.0,90091.0,0.0017116]
[1731815246205,0.14661906,90092.0,90091.0,0.0017116]
[1731815249984,0.110997,90092.0,90091.0,0.0017116]
[1731815250871,0.0821,90104.0,90091.0,0.0017116]
[1731815250872,0.03581037,90098.0,90091.0,0.0017116]
[1731815251089,0.045,90106.0,90092.0,0.10906255]
[1731815251314,0.0830966,90111.0,90094.0,0.110994]
[1731815251315,0.110988,90100.0,90094.0,0.110994]
[1731815251820,0.110988,90100.0,90093.0,0.221992]
[1731815252057,0.110988,90100.0,90095.0,0.110993]
[1731815252733,0.110988,90100.0,90091.0,0.0017116]
[1731815252734,0.03787179,90111.0,90094.0,0.0476]
[1731815252958,0.02075133,90110.0,90102.0,0.110984]
[1731815253180,0.110978,90108.0,90102.0,0.110984]
[1731815253674,0.03687519,90111.0,90096.0,0.221985]
[1731815253896,0.11098,90106.0,90100.0,0.110986]
[1731815254147,0.110979,90107.0,90101.0,0.110985]
[1731815254372,0.11098,90106.0,90101.0,0.110985]
[1731815254600,0.221953,90109.0,90099.0,0.110988]
[1731815254601,0.110982,90105.0,90099.0,0.110988]
[1731815254843,0.221948,90111.0,90094.0,0.22005755]
[1731815255062,0.02075227,90110.0,90094.0,0.10906255]
[1731815255312,0.110985,90102.0,90096.0,0.110992]
[1731815255550,0.110985,90102.0,90097.0,0.110991]
[1731815255791,0.102985,90102.0,90097.0,0.110991]
[1731815257371,0.221965,90104.0,90097.0,0.110991]
[1731815257634,0.221965,90104.0,90095.0,0.110993]
[1731815257849,0.11098,90106.0,90091.0,0.1127096]
[1731815258099,0.110992,90097.0,90091.0,0.1127096]
[1731815259016,0.332968,90099.0,90092.0,0.110996]
[1731815259680,0.332968,90099.0,90091.0,0.0017116]
[1731815259681,0.110996,90093.0,90091.0,0.0017116]
[1731815261552,0.110997,90092.0,90091.0,0.0017116]
[1731815262038,0.155997,90092.0,90091.0,0.0017116]
[1731815262268,0.238097,90092.0,90091.0,0.0017116]
[1731815262487,0.25885391,90092.0,90091.0,0.0017116]
[1731815263655,0.28185391,90092.0,90091.0,0.0017116]
[1731815263879,0.56364052,90092.0,90091.0,0.0017116]
[1731815264114,0.88349839,90092.0,90091.0,0.0017116]
[1731815264573,0.68463639,90092.0,90091.0,0.0017116]
[1731815264835,0.79369894,90092.0,90091.0,0.0017116]
[1731815265068,0.89869894,90092.0,90091.0,0.0017116]
[1731815265555,0.89869894,90092.0,90065.0,0.16743407]
[1731815265556,0.002,90085.0,90082.0,0.16743407]
[1731815265769,0.111021,90073.0,90072.0,0.16743407]
[1731815266011,0.492964,90077.0,90055.0,0.08645687]
[1731815266012,0.222039,90074.0,90055.0,0.08645687]
[1731815266215,0.02074677,90073.0,90055.0,0.08645687]
[1731815266470,0.01037376,90074.0,90055.0,0.08645687]
[1731815266471,0.02074677,90072.0,90055.0,0.0794]
[1731815266712,0.21633407,90077.0,90045.0,0.38954507]
[1731815266713,0.111035,90062.0,90049.0,0.222101]
[1731815266968,0.12544677,90071.0,90048.0,0.0794]
[1731815266969,0.023,90069.0,90048.0,0.0794]
[1731815267198,0.111044,90055.0,90048.0,0.29951355]
[1731815267428,0.111044,90055.0,90049.0,0.11105]
[1731815267675,0.16743407,90067.0,90050.0,0.111049]
[1731815267917,0.16743407,90067.0,90048.0,0.0794]
[1731815267918,0.111037,90060.0,90049.0,0.11105]
[1731815268159,0.111038,90059.0,90052.0,0.111046]
[1731815268392,0.222064,90064.0,90050.0,0.222098]
[1731815268630,0.11104,90058.0,90052.0,0.111046]
[1731815269796,0.11104,90058.0,90053.0,0.111045]
[1731815270260,0.09119403,90058.0,90053.0,0.111045]
[1731815270724,0.222072,90061.0,90053.0,0.111045]
[1731815271867,0.111039,90058.0,90053.0,0.111045]
[1731815272835,0.111039,90058.0,90050.0,0.222098]
[1731815273076,0.111039,90058.0,90051.0,0.111047]
[1731815273292,0.111039,90058.0,90052.0,0.111046]
[1731815275153,0.16743407,90067.0,90060.0,0.111036]
[1731815275380,0.16743407,90067.0,90055.0,0.222086]
[1731815275605,0.27846207,90067.0,90062.0,0.111034]
[1731815276064,0.111028,90067.0,90062.0,0.111034]
[1731815276715,0.222029,90079.0,90058.0,0.0763]
[1731815276960,0.222029,90079.0,90069.0,0.111025]
[1731815276961,0.16743407,90076.0,90069.0,0.111025]
[1731815277158,0.16743407,90076.0,90060.0,0.222074]
[1731815277469,0.16743407,90076.0,90062.0,0.111033]
[1731815277470,0.111026,90069.0,90062.0,0.111033]
[1731815277689,0.111026,90069.0,90061.0,0.222071]
[1731815277913,0.222039,90074.0,90060.0,0.222074]
[1731815278175,0.111021,90073.0,90062.0,0.111034]
[1731815278413,0.222042,90073.0,90062.0,0.111034]
[1731815278628,0.111024,90071.0,90062.0,0.111034]
[1731815278844,0.03795604,90079.0,90062.0,0.222069]
[1731815279060,0.16743407,90078.0,90072.0,0.111021]
[1731815279266,0.16743407,90078.0,90062.0,0.222069]
[1731815279479,0.27844907,90078.0,90071.0,0.111022]
[1731815280318,0.111016,90077.0,90071.0,0.111022]
[1731815280541,0.0009868,90083.0,90064.0,0.16743407]
[1731815280751,0.0009868,90083.0,90079.0,0.111012]
[1731815281237,0.157207,90085.0,90079.0,0.111012]
[1731815281466,0.03672572,90084.0,90079.0,0.111012]
[1731815281700,0.157207,90085.0,90079.0,0.111012]
[1731815282156,0.157207,90085.0,90077.0,0.333046]
[1731815283057,0.111007,90084.0,90078.0,0.111014]
[1731815283964,0.111007,90084.0,90073.0,0.22204]
[1731815283965,0.0816115,90085.0,90067.0,0.666168]
[1731815284194,0.0816115,90085.0,90068.0,0.10906255]
[1731815284195,0.0462,90085.0,90068.0,0.10906255]
[1731815284420,0.0803,90091.0,90085.0,0.111005]
[1731815284421,0.110999,90091.0,90085.0,0.111005]
[1731815284656,0.111,90090.0,90085.0,0.111005]
[1731815285095,0.111,90090.0,90071.0,0.222047]
[1731815285096,0.0017116,90092.0,90072.0,0.16743407]
[1731815285322,0.0017116,90092.0,90088.0,0.111002]
[1731815285544,0.0017116,90092.0,90091.0,0.110998]
[1731815285765,0.0017116,90092.0,90078.0,0.222027]
[1731815285766,0.19776617,90103.0,90095.0,0.110993]
[1731815286003,0.19776617,90103.0,90087.0,0.0825]
[1731815286004,0.16114567,90103.0,90094.0,0.22199]
[1731815286214,0.16114567,90103.0,90098.0,0.110989]
[1731815286425,0.16114567,90103.0,90088.0,0.10906255]
[1731815286837,0.110989,90099.0,90092.0,0.110996]
[1731815287087,0.110989,90099.0,90093.0,0.110996]
[1731815287506,0.221968,90103.0,90094.0,0.110994]
[1731815287933,0.110988,90100.0,90094.0,0.110994]
[1731815288161,0.110988,90100.0,90088.0,0.33106455]
[1731815288387,0.110985,90102.0,90096.0,0.110992]
[1731815288617,0.110985,90102.0,90089.0,0.222002]
[1731815288618,0.16743407,90103.0,90093.0,0.22199]
[1731815288828,0.110986,90101.0,90093.0,0.22199]
[1731815289035,0.110986,90101.0,90095.0,0.110993]
[1731815289972,0.110994,90095.0,90090.0,0.111]
[1731815290176,0.16743407,90103.0,90089.0,0.10906255]
[1731815290177,0.110989,90099.0,90089.0,0.10906255]
[1731815290394,0.110989,90099.0,90093.0,0.110995]
[1731815290604,0.110987,90101.0,90091.0,0.221997]
[1731815290815,0.110987,90101.0,90095.0,0.110993]
[1731815291019,0.110988,90100.0,90095.0,0.110993]
[1731815291655,0.22197,90102.0,90091.0,0.110998]
[1731815291656,0.110991,90097.0,90091.0,0.110998]
[1731815292075,0.16743407,90103.0,90092.0,0.110997]
[1731815292076,0.110989,90099.0,90092.0,0.110997]
[1731815292488,0.11099,90098.0,90092.0,0.110997]
[1731815293525,0.2228291,90101.0,90082.0,0.0825]
[1731815293526,0.0008561,90101.0,90082.0,0.0825]
[1731815293761,0.110999,90091.0,90082.0,0.10906255]
[1731815294019,0.110995,90094.0,90084.0,0.333022]
[1731815294236,0.110995,90094.0,90088.0,0.111002]
[1731815294449,0.110996,90093.0,90088.0,0.111002]
[1731815295557,0.221985,90096.0,90087.0,0.111003]
[1731815295753,0.110996,90093.0,90087.0,0.111003]
[1731815297138,0.110996,90093.0,90083.0,0.222017]
[1731815297139,0.221975,90100.0,90086.0,0.09310409]
[1731815297353,0.0008561,90101.0,90096.0,0.110992]
[1731815297354,0.16829017,90101.0,90096.0,0.110992]
[1731815297586,0.16829017,90101.0,90098.0,0.110989]
[1731815297807,0.0008561,90101.0,90094.0,0.22199]
[1731815298048,0.0008561,90101.0,90092.0,0.221995]
[1731815298303,0.0008561,90101.0,90089.0,0.222001]
[1731815298523,0.110988,90100.0,90094.0,0.110994]
[1731815298744,0.110989,90099.0,90094.0,0.110994]
[1731815298965,0.110988,90100.0,90093.0,0.110995]
[1731815299192,0.110989,90099.0,90090.0,0.222]
[1731815299397,0.0008561,90101.0,90090.0,0.222]
[1731815299602,0.110988,90100.0,90094.0,0.110994]
[1731815300681,0.102988,90100.0,90094.0,0.110994]
[1731815301328,0.0008561,90101.0,90093.0,0.221992]
[1731815301551,0.1118431,90101.0,90095.0,0.110993]
[1731815301760,0.0008561,90101.0,90090.0,0.222]
[1731815301973,0.0008561,90101.0,90100.0,0.110987]
[1731815302867,0.110989,90099.0,90093.0,0.110995]
[1731815303099,0.0008561,90101.0,90093.0,0.10906255]
[1731815303520,0.0008561,90101.0,90100.0,0.110987]
[1731815304192,0.0008561,90101.0,90095.0,0.443974]
[1731815304193,0.0008561,90101.0,90098.0,0.110989]
[1731815304423,0.110988,90100.0,90095.0,0.110993]
[1731815304648,0.0008557,90100.0,90093.0,0.10906255]
[1731815304869,0.0008557,90100.0,90096.0,0.110992]
[1731815305094,0.0008557,90100.0,90097.0,0.110991]
[1731815305583,0.0008557,90100.0,90075.0,0.222034]
[1731815305584,0.0772,90095.0,90075.0,0.222034]
[1731815305786,0.0772,90095.0,90070.0,0.0479]
[1731815305787,0.0458,90093.0,90070.0,0.222048]
[1731815306018,0.0458,90093.0,90074.0,0.111018]
[1731815306019,0.111014,90079.0,90074.0,0.111018]
[1731815307286,0.111016,90078.0,90073.0,0.22008255]
[1731815307491,0.0458,90080.0,90073.0,0.22008255]
[1731815307492,0.222027,90079.0,90073.0,0.10906255]
[1731815307700,0.111015,90078.0,90073.0,0.22008255]
[1731815309053,0.156813,90080.0,90074.0,0.111019]
[1731815309257,0.111014,90079.0,90074.0,0.111019]
[1731815309473,0.11102,90074.0,90068.0,0.111026]
[1731815309711,0.0772,90087.0,90070.0,0.09310409]
[1731815309914,0.38943307,90091.0,90075.0,0.09310409]
[1731815309915,0.16743407,90081.0,90075.0,0.09310409]
[1731815310124,0.16743407,90081.0,90079.0,0.111012]
[1731815310333,0.111007,90084.0,90079.0,0.111012]
[1731815310534,0.111009,90083.0,90076.0,0.111016]
[1731815310942,0.11101,90082.0,90075.0,0.09310409]
[1731815311169,0.11101,90082.0,90077.0,0.111015]
[1731815312499,0.222,90090.0,90077.0,0.222031]
[1731815312931,0.111001,90089.0,90080.0,0.111011]
[1731815313139,0.222,90090.0,90075.0,0.09310409]
[1731815313350,0.111006,90085.0,90079.0,0.111013]
[1731815313558,0.111006,90085.0,90076.0,0.222034]
[1731815313559,0.222,90090.0,90076.0,0.222034]
[1731815313790,0.222,90090.0,90077.0,0.222032]
[1731815314013,0.111007,90085.0,90079.0,0.111013]
[1731815314499,0.111007,90084.0,90079.0,0.111013]
[1731815315783,0.103007,90084.0,90079.0,0.111013]
[1731815316207,0.222005,90088.0,90075.0,0.09310409]
[1731815316414,0.11101,90082.0,90077.0,0.111015]
[1731815316652,0.222005,90088.0,90071.0,0.18936255]
[1731815316880,0.111017,90076.0,90071.0,0.10906255]
[1731815317112,0.111019,90075.0,90071.0,0.10906255]
[1731815317356,0.1313,90087.0,90065.0,0.11103]
[1731815317357,0.111024,90071.0,90065.0,0.11103]
[1731815317579,0.111024,90071.0,90066.0,0.10906255]
[1731815317801,0.111024,90071.0,90066.0,0.22009055]
[1731815318014,0.159121,90073.0,90068.0,0.111026]
[1731815318435,0.111022,90072.0,90068.0,0.111027]
[1731815318843,0.159121,90073.0,90068.0,0.111027]
[1731815320194,0.111022,90072.0,90067.0,0.111028]
[1731815321246,0.111024,90071.0,90066.0,0.10906255]
[1731815321459,0.111026,90069.0,90063.0,0.111032]
[1731815321639,0.111026,90069.0,90064.0,0.10906255]
[1731815322126,0.111026,90069.0,90058.0,0.11611815]
[1731815322127,0.16743407,90068.0,90058.0,0.0801114]
[1731815322366,0.0481,90073.0,90060.0,0.111036]
[1731815322367,0.111031,90065.0,90060.0,0.111036]
[1731815322568,0.0832,90072.0,90058.0,0.11077395]
[1731815322799,0.111031,90065.0,90059.0,0.111038]
[1731815323021,0.111032,90064.0,90059.0,0.111038]
[1731815323715,0.222051,90069.0,90058.0,0.1127494]
[1731815323936,0.111033,90063.0,90058.0,0.0017114]
[1731815324192,0.111033,90063.0,90058.0,0.1127494]
[1731815324438,0.111035,90062.0,90058.0,0.0017114]
[1731815328140,0.111037,90060.0,90058.0,0.0017114]